bitfinex/quotes_ETHUSD_20240926
["timestamp","ask_amount","ask_price","bid_price","bid_amount"]
[1727309218162,1.07737003,2589.2,2588.8,3.86278]
[1727309220790,0.9176,2589.0,2588.6,0.0475061]
[1727309220986,0.05860087,2588.9,2588.6,0.0475061]
[1727309221981,0.05860087,2588.9,2588.6,3.9104661]
[1727309222246,0.97620087,2589.0,2588.7,3.86294]
[1727309222747,0.97620087,2589.0,2588.6,0.0475061]
[1727309222980,0.97620087,2589.0,2588.7,3.86291]
[1727309223222,0.97620087,2589.0,2588.6,0.0475061]
[1727309223421,0.97620087,2589.0,2588.6,3.9105861]
[1727309223586,0.97620087,2589.0,2588.7,3.86293]
[1727309223786,0.97620087,2589.0,2588.6,0.0475061]
[1727309223987,4.83880087,2589.0,2588.6,0.04669416]
[1727309224184,1.46004296,2589.0,2588.6,3.90963416]
[1727309224425,0.05860087,2589.0,2588.7,3.86289]
[1727309224724,0.05860087,2589.1,2588.7,3.93942685]
[1727309224928,0.98870087,2589.4,2588.8,1.0164]
[1727309225130,10.71153297,2590.4,2589.3,3.86195]
[1727309225131,4.79134,2589.9,2589.3,3.86195]
[1727309225430,0.05860087,2589.8,2589.3,3.86195]
[1727309225597,0.92970496,2589.8,2589.3,3.86195]
[1727309225783,0.92970496,2589.8,2589.1,3.86224]
[1727309225784,0.92970496,2589.8,2589.4,0.07709202]
[1727309225984,3.91998087,2589.8,2589.4,0.07709202]
[1727309226234,7.78138087,2589.8,2589.2,3.86208]
[1727309226520,0.05860087,2589.7,2589.5,0.07687773]
[1727309226929,0.9301,2589.9,2589.5,3.86166]
[1727309227135,0.98870087,2589.9,2589.5,3.86166]
[1727309228204,0.99320087,2590.1,2589.7,3.86143]
[1727309228517,0.99320087,2590.1,2589.5,7.72333]
[1727309228518,3.861,2590.0,2589.5,7.72333]
[1727309229028,1.47859896,2590.1,2589.3,0.9895]
[1727309229204,0.99320087,2590.1,2589.6,3.86148]
[1727309230327,0.99320087,2590.1,2589.8,3.8612]
[1727309230499,0.9346,2590.1,2589.7,3.86144]
[1727309230730,0.99320087,2590.1,2589.7,3.86144]
[1727309230912,0.99320087,2590.1,2589.5,3.86161]
[1727309231119,3.86107,2590.0,2589.5,3.86161]
[1727309231445,0.05860087,2589.9,2589.5,3.86161]
[1727309233768,0.05860087,2590.1,2589.8,3.86117]
[1727309233915,4.83853,2590.4,2589.8,3.86117]
[1727309234121,3.91917087,2590.3,2589.8,3.86117]
[1727309234390,0.05860087,2590.3,2589.9,3.86106]
[1727309234869,0.9581,2590.8,2590.1,0.9261]
[1727309235021,3.35153297,2591.7,2590.1,0.9261]
[1727309235022,3.85915,2591.3,2590.7,3.85988]
[1727309235220,0.05860087,2591.4,2590.7,3.8599]
[1727309235563,0.05860087,2591.5,2591.3,3.85897]
[1727309235734,0.05860087,2591.7,2591.3,3.85897]
[1727309235915,0.05860087,2591.7,2591.1,4.78541]
[1727309235916,3.85863,2591.6,2591.1,4.78541]
[1727309236119,0.9581,2591.8,2591.0,3.85941]
[1727309236120,0.05860087,2591.5,2591.0,3.85941]
[1727309236368,0.05860087,2591.5,2591.1,3.85928]
[1727309237218,0.05860087,2591.5,2591.1,3.85927]
[1727309237431,0.05860087,2591.5,2590.9,0.9261]
[1727309237432,0.03701074,2592.0,2591.2,0.07718782]
[1727309237664,0.03701074,2592.0,2591.6,3.85861]
[1727309237960,0.03701074,2592.0,2591.4,0.9261]
[1727309237961,0.09561161,2592.0,2591.4,0.9261]
[1727309238219,3.85849,2591.7,2591.2,3.85919]
[1727309238374,0.03701074,2592.0,2591.4,3.85891]
[1727309238525,0.09561161,2592.0,2591.2,3.85913]
[1727309238868,3.85827,2591.9,2591.3,3.85905]
[1727309239044,3.85827,2591.9,2591.2,3.85913]
[1727309239045,0.05860087,2591.8,2591.2,3.85913]
[1727309239369,3.91693087,2591.8,2591.2,3.85913]
[1727309239725,3.91693087,2591.8,2591.3,0.07355875]
[1727309239931,0.9394,2591.6,2591.0,4.79205]
[1727309240125,0.99800087,2591.6,2591.4,0.07355875]
[1727309240325,0.99800087,2591.6,2591.0,4.79205]
[1727309240571,0.99800087,2591.6,2591.1,0.07355875]
[1727309240766,4.85665087,2591.6,2591.1,0.07355875]
[1727309240968,3.85885,2591.5,2591.1,0.07355875]
[1727309241134,3.91745087,2591.5,2591.1,0.07355875]
[1727309241328,3.85904,2591.4,2590.7,3.9311]
[1727309241571,3.85885,2591.5,2591.2,0.07355875]
[1727309241736,3.85885,2591.5,2590.3,3.86052]
[1727309241737,0.05860087,2591.5,2591.0,3.85948]
[1727309241950,3.85878,2591.5,2590.9,3.9693]
[1727309242147,3.85893,2591.4,2590.9,3.9693]
[1727309242356,3.85907,2591.3,2590.9,3.9693]
[1727309242592,3.85907,2591.3,2591.0,0.07355875]
[1727309243281,3.85907,2591.3,2590.7,7.79634]
[1727309243491,0.05860087,2591.4,2590.9,3.0]
[1727309243671,3.91752087,2591.4,2590.9,3.0]
[1727309243978,3.85907,2591.3,2591.0,0.07355875]
[1727309244183,3.85823,2591.9,2591.0,0.07355875]
[1727309244184,0.9614,2591.1,2591.0,0.07355875]
[1727309244343,4.82076,2591.1,2591.0,0.07355875]
[1727309244686,3.86016,2590.6,2590.1,4.82946]
[1727309244888,3.86005,2590.7,2590.1,0.9687]
[1727309245106,0.05860087,2590.9,2589.8,4.82995]
[1727309245107,3.86055,2590.3,2589.8,4.82995]
[1727309245387,3.86055,2590.3,2589.8,0.9687]
[1727309245739,3.86051,2590.4,2589.8,0.9687]
[1727309245961,3.86051,2590.4,2589.8,4.82998]
[1727309246479,3.86051,2590.4,2589.9,3.0]
[1727309246645,0.05860087,2590.5,2590.0,3.86098]
[1727309246839,0.05860087,2590.5,2589.8,3.9687]
[1727309247079,3.86086,2590.1,2589.5,4.8006]
[1727309247254,0.05860087,2590.0,2589.5,4.8006]
[1727309247454,3.91961087,2590.0,2589.5,4.8006]
[1727309247782,0.9442,2590.0,2589.5,3.8616]
[1727309248560,4.8052,2590.0,2589.5,3.8616]
[1727309248746,4.86380087,2590.0,2589.5,3.8616]
[1727309249167,3.8614,2589.8,2589.2,7.80109]
[1727309249371,3.92000087,2589.8,2589.2,7.80109]
[1727309249622,3.86145,2589.7,2588.9,4.82697906]
[1727309249788,0.9724,2589.5,2588.9,4.82697906]
[1727309249977,0.9724,2589.5,2589.1,3.86232]
[1727309251018,0.9724,2589.5,2589.0,3.86236]
[1727309251220,0.9724,2589.5,2588.9,4.82697906]
[1727309251527,4.83415,2589.5,2588.9,4.82697906]
[1727309251697,4.83415,2589.5,2588.9,8.68952906]
[1727309251897,0.9724,2589.5,2589.0,3.86244]
[1727309253481,0.9724,2589.5,2588.9,4.82693906]
[1727309253784,3.86208,2589.3,2588.9,0.03798906]
[1727309254487,3.86208,2589.3,2589.0,0.07274123]
[1727309254800,0.05860087,2589.4,2589.0,0.07274123]
[1727309255187,3.86207,2589.3,2589.0,0.07274123]
[1727309255833,3.92067087,2589.3,2589.0,0.07274123]
[1727309257414,7.78286087,2589.3,2589.0,0.07274123]
[1727309257624,4.80674,2589.1,2589.0,0.07274123]
[1727309257943,1.00300087,2589.1,2588.9,0.03798906]
[1727309258098,1.00300087,2589.1,2589.0,0.07292622]
[1727309259138,0.9397,2589.4,2589.0,3.93535622]
[1727309259349,0.05860087,2589.5,2589.1,3.86233]
[1727309259505,0.05860087,2589.5,2589.2,0.07315994]
[1727309260355,3.92037087,2589.5,2589.2,0.07315994]
[1727309260500,0.05860087,2589.5,2589.0,3.86238]
[1727309260703,0.05860087,2589.5,2589.1,0.0739972]
[1727309261151,3.92044087,2589.5,2589.1,0.0739972]
[1727309261702,3.92044087,2589.5,2588.9,3.90053906]
[1727309261904,3.92044087,2589.5,2589.0,0.0739972]
[1727309263643,3.86202,2589.4,2589.0,0.0739972]
[1727309264074,3.86205,2589.3,2589.0,0.0739972]
[1727309265122,3.86202,2589.4,2589.0,0.0739972]
[1727309265318,3.92062087,2589.4,2589.0,0.0739972]
[1727309266345,4.80134,2589.6,2589.0,0.0739972]
[1727309266346,0.05860087,2589.5,2589.0,0.0739972]
[1727309266620,0.05860087,2589.5,2589.1,3.86232]
[1727309266838,0.05860087,2589.5,2589.1,3.86226]
[1727309267037,0.05860087,2589.5,2589.2,0.07377323]
[1727309267445,3.92047087,2589.5,2589.2,0.07377323]
[1727309267727,3.92047087,2589.5,2589.0,3.86241]
[1727309268033,3.92047087,2589.5,2589.1,0.07377323]
[1727309269791,0.05860087,2589.5,2589.1,0.07377323]
[1727309270113,3.92041087,2589.5,2589.0,3.86242]
[1727309270275,1.0103,2589.8,2589.3,3.86203]
[1727309270503,3.91985087,2589.9,2589.3,3.86192]
[1727309270670,3.91985087,2589.9,2589.4,3.93526347]
[1727309271868,3.91985087,2589.9,2589.4,0.07339347]
[1727309272615,7.78109087,2589.9,2589.4,0.07339347]
[1727309272916,3.86124,2589.9,2589.4,0.07339347]
[1727309273066,3.91984087,2589.9,2589.4,0.07339347]
[1727309273270,0.05860087,2589.9,2589.4,3.93516347]
[1727309273479,0.05860087,2589.9,2589.5,3.86173]
[1727309273716,0.05860087,2589.9,2589.6,0.07315981]
[1727309273877,4.86614,2590.1,2589.6,4.86873981]
[1727309274213,1.93647487,2590.1,2589.6,0.07315981]
[1727309274392,4.85345,2589.7,2589.6,0.07315981]
[1727309274592,3.86169,2589.6,2589.2,3.0]
[1727309274907,4.40565987,2589.6,2589.0,4.79647]
[1727309275224,0.9431,2589.3,2588.9,0.03798906]
[1727309275395,3.86249,2589.0,2588.9,0.03798906]
[1727309275967,0.05860087,2589.0,2588.9,0.03798906]
[1727309277714,0.05860087,2589.1,2588.9,0.03798906]
[1727309277922,4.8383,2589.6,2588.9,1.03638906]
[1727309278245,0.05860087,2589.5,2589.1,3.86231]
[1727309278543,0.05860087,2589.6,2589.2,3.86217]
[1727309278838,4.30628687,2589.7,2589.2,3.86217]
[1727309279051,3.92015087,2589.7,2589.2,3.86217]
[1727309279542,0.9771,2589.8,2589.3,3.86197]
[1727309279543,4.89702087,2589.8,2589.3,3.86197]
[1727309280344,0.05860087,2589.8,2589.5,3.86174]
[1727309280549,0.05860087,2590.0,2589.4,0.9725]
[1727309280747,0.05860087,2590.0,2589.1,3.9725]
[1727309280748,3.86142,2589.8,2589.1,3.9725]
[1727309280910,4.79796,2589.6,2588.9,3.90052906]
[1727309281245,0.05860087,2589.5,2589.0,3.86249]
[1727309281610,3.92043087,2589.5,2588.9,3.90052906]
[1727309281831,0.05860087,2589.5,2589.1,3.86232]
[1727309282032,4.85656087,2589.6,2589.1,3.86232]
[1727309282307,4.34663709,2590.0,2589.4,3.86182]
[1727309282629,0.05860087,2590.0,2589.6,3.86158]
[1727309283018,0.05860087,2590.0,2589.4,3.86182]
[1727309283229,3.91961087,2590.0,2589.5,3.86171]
[1727309283749,3.91961087,2590.0,2589.6,4.86378]
[1727309283750,0.05860087,2590.0,2589.6,4.86378]
[1727309283951,3.91947087,2590.1,2589.6,4.86378]
[1727309284254,3.91946087,2590.1,2589.6,4.86378]
[1727309284611,7.78043087,2590.1,2589.7,0.07044078]
[1727309284951,3.86086,2590.1,2589.7,0.07044078]
[1727309285243,4.40468687,2590.1,2589.7,0.07044078]
[1727309285747,3.86124,2589.9,2589.8,0.07044078]
[1727309286065,3.86124,2589.9,2589.4,3.86181]
[1727309286252,3.86124,2589.9,2589.8,0.07044078]
[1727309286416,3.86124,2589.9,2589.4,3.86181]
[1727309286605,3.86124,2589.9,2589.8,0.07044078]
[1727309286815,3.86124,2589.9,2589.4,7.72362]
[1727309287008,3.86124,2589.9,2589.8,0.07044078]
[1727309287507,3.8613,2589.8,2589.3,7.82964]
[1727309287707,3.91990087,2589.8,2589.4,0.07044078]
[1727309288311,7.78128087,2589.8,2589.4,0.07044078]
[1727309288512,3.8613,2589.8,2589.4,0.07044078]
[1727309288733,7.72274,2589.8,2589.4,0.07044078]
[1727309288942,4.86736,2589.7,2589.4,0.07044078]
[1727309289106,4.92596087,2589.7,2589.2,3.86218]
[1727309289312,4.92596087,2589.7,2589.3,0.07044078]
[1727309289514,4.92596087,2589.7,2589.2,3.86218]
[1727309289710,4.92596087,2589.7,2589.3,0.07044078]
[1727309289951,4.92596087,2589.7,2589.2,3.86218]
[1727309290111,4.92596087,2589.7,2589.3,0.07044078]
[1727309290309,4.92596087,2589.7,2589.2,3.86218]
[1727309290514,3.86193,2589.4,2589.3,0.07044078]
[1727309290816,3.86176,2589.5,2589.0,3.86247]
[1727309291391,0.05860087,2589.4,2589.1,0.07053812]
[1727309292255,0.05860087,2589.4,2588.9,3.90051906]
[1727309292580,0.05860087,2589.4,2588.9,7.76307906]
[1727309292782,0.05860087,2589.4,2589.0,0.07082046]
[1727309293076,3.92050087,2589.4,2589.0,0.07082046]
[1727309293588,3.86208,2589.3,2589.0,0.07082046]
[1727309295257,4.79274,2589.1,2589.0,0.07082046]
[1727309295466,4.85134087,2589.1,2589.0,0.07082046]
[1727309296382,4.79274,2589.1,2589.0,0.07082046]
[1727309296867,0.05860087,2589.2,2589.0,0.07082046]
[1727309297083,3.92074087,2589.3,2589.0,0.07082046]
[1727309297642,3.8623,2589.2,2589.0,0.07082046]
[1727309297856,3.92090087,2589.2,2589.0,0.07082046]
[1727309299136,0.05860087,2589.2,2589.0,0.07082046]
[1727309299709,3.92083087,2589.2,2589.0,0.07082046]
[1727309303826,0.05860087,2589.2,2589.0,0.07082046]
[1727309304450,0.05860087,2589.3,2589.0,0.07082046]
[1727309304859,3.92066087,2589.3,2589.0,0.07082046]
[1727309305155,4.8455,2589.4,2589.0,0.07082046]
[1727309305327,4.90410087,2589.4,2589.0,0.07082046]
[1727309305712,1.91878096,2589.4,2589.0,0.07082046]
[1727309305910,3.86221,2589.2,2589.0,0.07082046]
[1727309306113,3.92081087,2589.2,2589.0,0.07082046]
[1727309306544,3.86234,2589.1,2589.0,0.07082046]
[1727309307166,5.39304087,2589.1,2589.0,0.07082046]
[1727309307321,6.31856596,2589.1,2589.0,0.07082046]
[1727309307516,5.76856596,2589.1,2589.0,0.07082046]
[1727309311022,0.98412596,2589.1,2589.0,0.07082046]
[1727309311252,0.05860087,2589.1,2589.0,0.07082046]
[1727309312079,0.05860087,2589.3,2589.0,0.07082046]
[1727309312587,3.8622,2589.2,2589.0,0.07082046]
[1727309312744,3.92094087,2589.1,2589.0,0.07082046]
[1727309313987,4.69925496,2589.1,2589.0,0.07082046]
[1727309314843,3.78226087,2589.1,2589.0,0.07082046]
[1727309315441,4.71996087,2589.1,2589.0,0.07082046]
[1727309316557,3.8622,2589.2,2589.0,0.07082046]
[1727309316792,3.92080087,2589.2,2589.0,0.07082046]
[1727309317309,0.05860087,2589.2,2589.0,0.07082046]
[1727309317824,0.05860087,2589.3,2589.0,0.07082046]
[1727309317965,0.9257,2589.7,2589.1,0.9699]
[1727309318165,0.9257,2589.7,2589.2,0.06843211]
[1727309318166,0.05860087,2589.6,2589.2,0.06843211]
[1727309318470,3.92023087,2589.6,2589.2,0.06843211]
[1727309318687,0.05860087,2589.6,2589.2,0.06843211]
[1727309319610,3.86177,2589.5,2589.2,0.06843211]
[1727309319767,0.05860087,2589.4,2589.2,0.06843211]
[1727309320292,3.92051087,2589.4,2588.9,4.83843906]
[1727309320491,3.92051087,2589.4,2589.3,0.06797474]
[1727309320692,3.92051087,2589.4,2588.9,4.83843906]
[1727309321031,0.05860087,2589.4,2588.9,4.83843906]
[1727309321210,0.05860087,2589.4,2589.0,0.06797474]
[1727309321500,3.92053087,2589.4,2589.0,0.06797474]
[1727309323370,0.05860087,2589.4,2589.0,0.06797474]
[1727309323573,3.92051087,2589.4,2589.0,0.06797474]
[1727309324065,3.92060087,2589.4,2589.0,0.06797474]
[1727309324513,3.86204,2589.3,2589.0,0.06797474]
[1727309324717,3.8622,2589.2,2589.0,0.06797474]
[1727309324940,3.86234,2589.1,2589.0,0.06797474]
[1727309328235,0.87869109,2589.3,2589.0,0.06797474]
[1727309328236,4.74088109,2589.3,2589.0,0.06797474]
[1727309328579,3.86226,2589.2,2589.0,0.06797474]
[1727309329441,3.86234,2589.1,2589.0,0.06797474]
[1727309330006,0.05860087,2589.1,2589.0,0.06797474]
[1727309330301,3.92094087,2589.1,2589.0,0.06797474]
[1727309330529,0.05860087,2589.1,2589.0,0.06797474]
[1727309330700,3.92094087,2589.1,2589.0,0.06797474]
[1727309331320,0.05860087,2589.1,2589.0,0.06797474]
[1727309332364,3.86226,2589.2,2589.0,0.06797474]
[1727309333420,3.86234,2589.1,2589.0,0.06797474]
[1727309334654,3.92094087,2589.1,2589.0,0.06797474]
[1727309337978,3.86207,2589.3,2589.0,0.06797474]
[1727309338181,3.86183,2589.5,2589.1,1.0016]
[1727309338338,3.92043087,2589.5,2589.2,0.06849054]
[1727309338665,3.92017087,2589.7,2589.2,3.93058054]
[1727309339128,3.86174,2589.6,2589.2,0.06849054]
[1727309339621,0.05860087,2589.8,2589.2,3.93068054]
[1727309340058,3.86162,2589.6,2589.2,0.06849054]
[1727309340468,3.86145,2589.7,2589.2,0.06849054]
[1727309340622,3.92005087,2589.7,2589.2,3.93067054]
[1727309340818,0.05860087,2589.7,2589.2,0.06849054]
[1727309341028,0.05860087,2590.0,2589.5,3.8617]
[1727309341372,0.05860087,2590.2,2589.6,0.9791]
[1727309341537,0.05860087,2590.2,2589.6,1.04664657]
[1727309341538,3.86093,2590.1,2589.6,1.04664657]
[1727309341924,3.91953087,2590.1,2589.6,1.04664657]
[1727309342268,3.86115,2589.9,2589.6,1.04664657]
[1727309343045,3.86141,2589.8,2589.6,0.06754657]
[1727309343251,3.86145,2589.7,2589.6,0.06754657]
[1727309343449,7.72284,2589.8,2589.4,0.9513]
[1727309343765,3.8614,2589.8,2589.4,0.9513]
[1727309343924,3.91998087,2589.8,2589.5,0.06732281]
[1727309346771,1.45948309,2590.1,2589.5,0.06732281]
[1727309346772,3.86092,2590.1,2589.6,3.86152]
[1727309346973,4.81598,2590.3,2589.6,3.86152]
[1727309346974,4.87458087,2590.3,2589.8,3.86125]
[1727309347269,3.91918087,2590.3,2589.9,0.06734226]
[1727309347625,3.86058,2590.3,2589.9,0.06734226]
[1727309348588,3.86013,2590.6,2590.1,3.86075]
[1727309348878,3.86028,2590.5,2590.2,0.06733254]
[1727309349236,3.86028,2590.5,2590.0,4.79751]
[1727309349426,3.86028,2590.5,2590.3,0.06733254]
[1727309349736,3.86028,2590.5,2590.0,4.79751]
[1727309349943,3.91878087,2590.6,2590.0,4.79751]
[1727309350147,3.91878087,2590.6,2590.1,3.92817254]
[1727309350378,0.05860087,2590.6,2590.1,3.92817254]
[1727309350544,0.05860087,2590.6,2590.1,0.06733254]
[1727309350745,0.05860087,2590.6,2590.2,3.86067]
[1727309350946,3.91873087,2590.6,2590.0,8.6584]
[1727309351146,3.91873087,2590.6,2590.1,0.06733254]
[1727309351644,0.05860087,2590.6,2590.1,0.06733254]
[1727309351861,3.91879087,2590.6,2590.1,0.06733254]
[1727309352457,3.91879087,2590.6,2590.1,3.92813254]
[1727309353988,4.83606,2590.9,2590.2,4.79839]
[1727309354290,3.85989,2590.8,2590.3,3.92628669]
[1727309356254,0.05860087,2590.9,2590.4,3.86038]
[1727309356454,3.91836087,2590.9,2590.5,0.9643]
[1727309356792,4.87407,2591.1,2590.5,1.02995002]
[1727309356954,3.85926,2591.2,2590.5,1.02995002]
[1727309357151,3.85959,2591.0,2590.5,1.02995002]
[1727309357774,3.85959,2591.0,2590.5,4.89013002]
[1727309358196,3.85959,2591.0,2590.5,1.02995002]
[1727309358352,3.85966,2590.9,2590.5,1.02995002]
[1727309359391,8.67011,2591.0,2590.5,1.02995002]
[1727309359551,5.7160936,2591.0,2590.5,1.02995002]
[1727309359757,0.05860087,2590.9,2590.5,1.02995002]
[1727309359974,3.85983,2590.8,2590.5,1.02995002]
[1727309360287,0.05860087,2590.9,2590.5,1.02995002]
[1727309360799,3.91834087,2590.9,2590.5,1.02995002]
[1727309361593,3.85982,2590.8,2590.5,0.06565002]
[1727309361804,0.05860087,2590.7,2590.2,3.9313]
[1727309361953,7.71976,2590.8,2590.3,3.92601532]
[1727309361954,3.85982,2590.8,2590.3,3.92601532]
[1727309363597,3.86011,2590.6,2590.3,0.06546532]
[1727309363890,3.86011,2590.6,2590.2,3.9313]
[1727309364367,3.86011,2590.6,2590.3,0.06553337]
[1727309364568,3.86011,2590.6,2590.2,3.9313]
[1727309364775,3.86011,2590.6,2590.3,0.06553337]
[1727309365087,0.05860087,2590.7,2590.2,3.9313]
[1727309365259,0.05860087,2590.7,2590.4,0.06553337]
[1727309365464,0.05860087,2590.7,2590.2,7.79195]
[1727309365688,0.05860087,2590.7,2590.5,0.06553337]
[1727309365689,3.91864087,2590.7,2590.5,0.06553337]
[1727309365915,3.91864087,2590.7,2590.2,3.9313]
[1727309366051,3.91864087,2590.7,2590.6,0.06553337]
[1727309366254,3.91864087,2590.7,2590.2,7.79198]
[1727309366904,3.91864087,2590.7,2590.3,0.06553337]
[1727309367191,3.91864087,2590.7,2590.2,7.79199]
[1727309367484,3.91864087,2590.7,2590.3,0.06553337]
[1727309367691,3.86018,2590.6,2590.3,0.06553337]
[1727309367993,3.86018,2590.6,2590.4,0.06553337]
[1727309368165,3.91856087,2590.7,2590.2,4.79199]
[1727309368506,3.86018,2590.6,2590.3,0.06553337]
[1727309368700,0.9192,2590.5,2590.3,0.06553337]
[1727309368869,0.9192,2590.5,2590.1,3.86084]
[1727309369192,4.77945,2590.5,2590.0,3.86088]
[1727309369378,4.83805087,2590.5,2590.0,3.86088]
[1727309369584,4.83805087,2590.5,2590.1,0.06538754]
[1727309370361,0.97780087,2590.5,2590.1,3.92622754]
[1727309371489,3.86018,2590.6,2590.1,3.92622754]
[1727309371664,3.91878087,2590.6,2590.1,3.92622754]
[1727309372772,1.05090087,2590.7,2590.2,3.86069]
[1727309372957,4.85868,2591.0,2590.4,3.86032]
[1727309373161,4.85868,2591.0,2590.5,0.06551391]
[1727309373162,0.05860087,2590.9,2590.5,0.06551391]
[1727309373492,0.05860087,2590.9,2590.5,3.92575391]
[1727309373925,3.85983,2590.8,2590.5,0.06551391]
[1727309374085,1.2683,2591.3,2590.5,0.06551391]
[1727309374287,4.82686,2591.7,2591.1,3.85925]
[1727309374522,0.9683,2591.7,2591.3,3.85892]
[1727309374726,0.9683,2591.7,2591.2,3.92461642]
[1727309374926,4.82679,2591.7,2591.2,3.85919]
[1727309375227,4.82679,2591.7,2591.1,3.85923]
[1727309375228,4.82679,2591.7,2591.3,0.06542642]
[1727309375402,4.82679,2591.7,2591.1,7.71851]
[1727309375728,4.82679,2591.7,2591.2,0.06542642]
[1727309375955,3.85893,2591.4,2591.2,0.06542642]
[1727309376287,7.71793,2591.4,2590.8,7.85677]
[1727309376485,7.71793,2591.4,2591.3,0.064853]
[1727309376727,3.85907,2591.3,2590.8,3.997]
[1727309377219,3.85893,2591.4,2590.8,7.85677]
[1727309377220,7.71793,2591.4,2590.8,7.85677]
[1727309377532,3.85907,2591.3,2590.8,3.997]
[1727309377822,4.81307,2591.2,2590.6,4.80501]
[1727309378384,4.81307,2591.2,2590.6,0.945]
[1727309378625,3.85983,2590.8,2590.4,0.945]
[1727309380429,3.85997,2590.7,2590.4,0.945]
[1727309380722,3.85983,2590.8,2590.4,0.945]
[1727309380894,3.85959,2591.0,2590.4,4.80532]
[1727309380895,3.91827087,2590.9,2590.4,4.80532]
[1727309381533,3.91827087,2590.9,2590.4,0.945]
[1727309381739,0.83638696,2590.9,2590.4,4.80538]
[1727309382037,3.8596,2591.0,2590.5,3.86023]
[1727309386470,0.05860087,2591.1,2590.6,0.9281]
[1727309386645,3.85937,2591.1,2590.6,4.78817]
[1727309386845,0.05860087,2591.1,2590.6,8.64818]
[1727309387076,0.05860087,2591.1,2590.6,4.78811]
[1727309387285,3.91796087,2591.1,2590.6,4.78811]
[1727309387485,3.91796087,2591.1,2590.6,8.64814]
[1727309387786,3.91796087,2591.1,2590.6,4.78811]
[1727309389066,3.69836087,2591.1,2590.6,4.78811]
[1727309389377,3.69836087,2591.1,2590.6,0.9281]
[1727309389378,3.85959,2591.0,2590.6,0.9281]
[1727309389586,3.85966,2590.9,2590.6,0.9281]
[1727309389767,3.85966,2590.9,2590.2,6.86061]
[1727309389768,3.85966,2590.9,2590.4,0.9539]
[1727309389951,3.85966,2590.9,2590.7,0.06464884]
[1727309390283,3.85966,2590.9,2590.8,0.06464884]
[1727309390644,0.9645,2591.0,2590.4,0.9539]
[1727309390847,7.7198,2590.8,2590.5,0.06474602]
[1727309391079,7.71985,2590.8,2590.5,0.06474602]
[1727309391485,3.85989,2590.8,2590.5,0.06474602]
[1727309391943,3.85967,2590.9,2590.5,0.06474602]
[1727309392774,8.68371,2591.0,2590.5,0.06474602]
[1727309393199,4.82408,2591.0,2590.5,0.06474602]
[1727309393366,4.82408,2591.0,2590.5,3.92495602]
[1727309393797,8.68369,2591.0,2590.5,0.06474602]
[1727309393957,3.85958,2591.0,2590.5,3.92499602]
[1727309394405,4.80161,2591.2,2590.5,0.06474602]
[1727309394564,3.85938,2591.1,2590.6,3.86008]
[1727309394897,3.85953,2591.0,2590.6,3.86008]
[1727309395100,3.85953,2591.0,2590.7,0.06474602]
[1727309395795,3.85953,2591.0,2590.5,3.86019]
[1727309395966,3.85953,2591.0,2590.8,0.06469743]
[1727309396158,3.85953,2591.0,2590.5,3.86019]
[1727309396362,3.85953,2591.0,2590.9,0.06469743]
[1727309396559,3.85953,2591.0,2590.5,3.86019]
[1727309396777,3.85953,2591.0,2590.9,0.06469743]
[1727309396984,3.85953,2591.0,2590.5,58.0]
[1727309397312,8.66093,2591.2,2590.6,3.85999]
[1727309397458,3.85871,2591.6,2591.1,0.9496]
[1727309397663,3.85879,2591.5,2591.1,0.9496]
[1727309397862,3.85879,2591.5,2591.2,0.06472658]
[1727309398089,3.85893,2591.4,2591.2,0.06472658]
[1727309398297,4.8292,2591.9,2591.2,0.06472658]
[1727309398298,3.85846,2591.8,2591.2,0.06472658]
[1727309398462,3.85879,2591.5,2591.2,0.06472658]
[1727309400504,1.0049,2591.4,2591.2,0.06472658]
[1727309400894,1.0049,2591.4,2590.9,3.85957]
[1727309401203,1.0049,2591.4,2590.9,7.71913]
[1727309401507,1.0049,2591.4,2591.0,0.06404637]
[1727309401913,3.85879,2591.5,2591.1,4.78506]
[1727309402074,4.87262,2591.6,2591.1,4.78506]
[1727309402478,1.014,2591.6,2591.2,0.06404637]
[1727309402679,3.85893,2591.4,2591.2,0.06404637]
[1727309403672,3.85893,2591.4,2591.3,0.06404637]
[1727309403886,3.85893,2591.4,2590.9,4.81946]
[1727309404180,7.71775,2591.5,2591.0,0.06404637]
[1727309404376,3.85864,2591.6,2591.1,3.85927]
[1727309404997,3.85864,2591.6,2591.2,0.06404637]
[1727309405514,4.86672,2591.8,2591.2,0.06404637]
[1727309405515,3.85906,2591.3,2591.2,0.06404637]
[1727309405813,4.83173,2591.4,2591.2,0.06404637]
[1727309406015,3.85907,2591.3,2590.9,0.9599]
[1727309406390,3.85907,2591.3,2591.0,0.06404637]
[1727309406585,4.83173,2591.4,2591.0,0.06404637]
[1727309406809,3.85915,2591.3,2591.0,0.06404637]
[1727309408318,3.85922,2591.2,2591.0,0.06404637]
[1727309408515,3.85915,2591.3,2591.0,0.06404637]
[1727309408882,7.7183,2591.3,2591.0,0.06404637]
[1727309409129,3.85887,2591.5,2591.0,0.06404637]
[1727309409424,3.85921,2591.2,2591.0,0.06404637]
[1727309409628,4.86181,2591.2,2591.0,0.06404637]
[1727309409930,4.86181,2591.2,2590.7,0.994]
[1727309409931,3.85936,2591.1,2590.7,0.994]
[1727309410794,4.86181,2591.2,2590.7,0.994]
[1727309410984,5.348091,2591.2,2590.7,0.994]
[1727309411192,3.85952,2591.0,2590.7,0.994]
[1727309411387,3.85952,2591.0,2590.5,58.0]
[1727309411624,7.71917,2591.0,2590.5,58.0]
[1727309411798,4.86189,2591.2,2590.6,0.9355]
[1727309411999,3.85929,2591.2,2590.6,0.9355]
[1727309412613,3.85929,2591.2,2590.7,3.85994]
[1727309412914,3.85929,2591.2,2590.6,4.7955]
[1727309413086,3.85929,2591.2,2590.6,8.6555]
[1727309413294,3.85929,2591.2,2590.6,4.7955]
[1727309413495,3.85929,2591.2,2590.6,8.65553]
[1727309414111,7.71859,2591.2,2590.6,4.7955]
[1727309414422,3.85976,2590.9,2590.6,0.9355]
[1727309414593,0.9963,2591.0,2590.6,0.9355]
[1727309414933,4.85589,2591.0,2590.6,0.9355]
[1727309415639,3.85971,2590.9,2590.6,0.9355]
[1727309415806,8.71553,2591.0,2590.6,0.9355]
[1727309416010,4.85589,2591.0,2590.6,0.9355]
[1727309416726,4.7908,2590.6,2590.5,58.0]